bitfinex/quotes_BTCUSD_20240715
["timestamp","ask_amount","ask_price","bid_price","bid_amount"]
[1721081801765,0.311894,64125.0,64111.0,0.00545681]
[1721081801766,0.6833087,64112.0,64111.0,0.00545681]
[1721081801960,0.6833087,64112.0,64111.0,0.00045681]
[1721081801961,1.4072167,64112.0,64111.0,0.00045681]
[1721081802185,1.3593078,64112.0,64111.0,0.00045681]
[1721081802379,1.7912018,64112.0,64111.0,0.00045681]
[1721081802751,1.6222307,64112.0,64111.0,0.00045681]
[1721081802989,2.0335618,64112.0,64111.0,0.00045681]
[1721081803298,1.9845307,64112.0,64111.0,0.00045681]
[1721081803508,1.9984937,64112.0,64111.0,0.00045681]
[1721081803723,2.0475248,64112.0,64111.0,0.00045681]
[1721081803924,2.1543707,64112.0,64111.0,0.00045681]
[1721081804344,2.1044107,64112.0,64111.0,0.00045681]
[1721081805072,2.1043107,64112.0,64111.0,0.00045681]
[1721081805436,2.1287325,64112.0,64111.0,0.00045681]
[1721081806846,2.1043107,64112.0,64111.0,0.00045681]
[1721081807300,2.17844558,64112.0,64111.0,0.00045681]
[1721081807829,1.68801664,64112.0,64111.0,0.00045681]
[1721081808048,1.52801664,64112.0,64111.0,0.00045681]
[1721081808245,0.01393764,64112.0,64111.0,0.06145681]
[1721081808668,0.79382264,64112.0,64111.0,0.00045681]
[1721081808883,0.01393764,64112.0,64111.0,0.00045681]
[1721081809211,1.10577664,64112.0,64111.0,0.00045681]
[1721081809394,0.32589164,64112.0,64111.0,0.00045681]
[1721081809607,0.79382264,64112.0,64111.0,0.00055681]
[1721081809830,0.01393764,64112.0,64111.0,0.00055681]
[1721081810209,0.14105238,64122.0,64111.0,0.00055681]
[1721081810526,0.155951,64123.0,64115.0,0.155968]
[1721081810732,0.00084,64130.0,64115.0,0.311934]
[1721081810934,0.155946,64125.0,64116.0,0.1887727]
[1721081811136,0.00084,64130.0,64117.0,0.39298038]
[1721081811340,0.00084,64130.0,64112.0,0.1435]
[1721081811540,0.00084,64130.0,64125.0,0.1887527]
[1721081811738,0.00084,64130.0,64125.0,0.467835]
[1721081812165,0.00084,64130.0,64125.0,0.923225]
[1721081812371,0.4863143,64156.0,64130.0,0.0611]
[1721081812571,0.4863143,64156.0,64148.0,0.155888]
[1721081812771,0.4863143,64156.0,64146.0,0.311788]
[1721081813020,0.15587,64156.0,64147.0,0.15589]
[1721081813217,0.155876,64154.0,64132.0,0.05]
[1721081813426,0.155876,64154.0,64145.0,0.155895]
[1721081813633,0.311744,64156.0,64146.0,0.155893]
[1721081813833,0.311744,64156.0,64131.0,0.1]
[1721081813834,0.311767,64151.0,64139.0,0.0328077]
[1721081814008,0.155893,64147.0,64139.0,0.1887177]
[1721081814209,0.08105238,64142.0,64139.0,0.0328077]
[1721081814385,0.155902,64143.0,64135.0,0.15592]
[1721081814590,0.08105238,64149.0,64131.0,0.0328077]
[1721081814766,0.155903,64143.0,64134.0,0.155922]
[1721081814975,0.155965,64117.0,64111.0,0.06535681]
[1721081815180,0.08105238,64134.0,64111.0,0.06535681]
[1721081815378,0.08105238,64127.0,64111.0,0.06535681]
[1721081815579,0.08105238,64120.0,64111.0,0.06535681]
[1721081815809,0.155977,64112.0,64111.0,0.00055681]
[1721081816707,1.091839,64112.0,64111.0,0.00055681]
[1721081816913,0.779885,64112.0,64111.0,0.00055681]
[1721081817120,0.623908,64112.0,64111.0,0.00055681]
[1721081817326,1.091839,64112.0,64111.0,0.00055681]
[1721081817544,1.214839,64112.0,64111.0,0.00055681]
[1721081817961,1.274839,64112.0,64111.0,0.00055681]
[1721081818497,1.274879,64112.0,64111.0,0.00055681]
[1721081819395,1.45593138,64112.0,64111.0,0.00055681]
[1721081819686,1.66788538,64112.0,64111.0,0.00055681]
[1721081819978,1.274879,64112.0,64111.0,0.00055681]
[1721081821116,1.324879,64112.0,64111.0,0.00055681]
[1721081821360,1.576833,64112.0,64111.0,0.00055681]
[1721081821576,1.636833,64112.0,64111.0,0.00055681]
[1721081821785,1.686833,64112.0,64111.0,0.00055681]
[1721081822007,1.736763,64112.0,64111.0,8.1e-07]
[1721081822223,1.301853,64111.0,64110.0,0.00849681]
[1721081822457,1.81786338,64111.0,64110.0,0.00849681]
[1721081822880,1.84218814,64111.0,64110.0,8.1e-07]
[1721081823093,2.04424614,64111.0,64110.0,8.1e-07]
[1721081823561,1.613823,64106.0,64105.0,8.1e-07]
[1721081823776,0.05,64103.0,64102.0,0.009196]
[1721081824000,1.92603538,64103.0,64102.0,1e-06]
[1721081824210,2.26103238,64103.0,64102.0,1e-06]
[1721081824422,2.47093238,64103.0,64102.0,1e-06]
[1721081824644,2.36103238,64103.0,64102.0,1e-06]
[1721081825136,1.464215,64088.0,64064.0,0.075]
[1721081825339,1.152145,64088.0,64073.0,0.01659935]
[1721081825542,1.275145,64088.0,64073.0,0.01659935]
[1721081825751,1.325145,64088.0,64070.0,0.01659935]
[1721081825955,1.275145,64088.0,64073.0,0.01659935]
[1721081826166,1.637215,64088.0,64064.0,0.075]
[1721081826369,1.587115,64088.0,64073.0,0.01659935]
[1721081826575,1.637115,64088.0,64071.0,0.01659935]
[1721081826781,1.587115,64088.0,64064.0,0.075]
[1721081826982,1.587115,64088.0,64073.0,0.01659935]
[1721081826983,1.637115,64088.0,64073.0,0.01659935]
[1721081827213,1.275045,64088.0,64073.0,0.01659935]
[1721081827764,1.275085,64088.0,64073.0,0.01659935]
[1721081828013,1.275085,64088.0,64072.0,0.01659935]
[1721081828184,0.963015,64088.0,64072.0,0.01659935]
[1721081828390,0.940015,64088.0,64073.0,0.01659935]
[1721081828545,1.252085,64088.0,64073.0,0.01659935]
[1721081828950,1.252085,64088.0,64074.0,0.01659935]
[1721081829355,1.252085,64088.0,64071.0,0.01659935]
[1721081829672,1.252085,64088.0,64064.0,0.075]
[1721081829673,1.554055,64088.0,64064.0,0.075]
[1721081829885,1.553955,64088.0,64061.0,0.069907]
[1721081830125,1.686855,64088.0,64061.0,0.069907]
[1721081830513,1.996255,64088.0,64068.0,0.01659935]
[1721081831401,1.996255,64088.0,64061.0,0.069907]
[1721081831621,1.996255,64088.0,64072.0,0.01659935]
[1721081831622,1.561285,64088.0,64072.0,0.01659935]
[1721081831837,1.561285,64088.0,64061.0,0.382107]
[1721081831838,1.561285,64088.0,64071.0,0.01659935]
[1721081832035,1.561285,64088.0,64072.0,0.01659935]
[1721081832242,1.561185,64088.0,64072.0,0.01659935]
[1721081832859,1.561185,64088.0,64070.0,0.01659935]
[1721081833007,1.561185,64088.0,64072.0,0.01659935]
[1721081833197,1.584185,64088.0,64072.0,0.01659935]
[1721081833647,0.215575,64088.0,64080.0,0.02962005]
[1721081833819,0.527645,64088.0,64080.0,0.02962005]
[1721081834019,0.92076738,64088.0,64080.0,0.0130207]
[1721081834220,0.92076738,64088.0,64080.0,0.02962005]
[1721081834803,0.92076738,64088.0,64080.0,0.0130207]
[1721081834804,1.23283738,64088.0,64080.0,0.0130207]
[1721081835015,1.17283738,64088.0,64080.0,0.0130207]
[1721081835224,1.27283738,64088.0,64080.0,0.0130207]
[1721081835422,1.274685,64088.0,64080.0,0.0130207]
[1721081835834,0.627545,64088.0,64080.0,0.0130207]
[1721081836037,1.29573738,64088.0,64080.0,0.0130207]
[1721081836253,1.66780738,64088.0,64080.0,0.0130207]
[1721081836469,0.962615,64088.0,64080.0,0.0130207]
[1721081837287,4e-05,64088.0,64087.0,1.18155735]
[1721081837498,4e-05,64088.0,64087.0,1.26255735]
[1721081837851,4e-05,64088.0,64087.0,1.57463235]
[1721081838053,0.14984,64100.0,64099.0,0.48462435]
[1721081838261,0.14974,64100.0,64099.0,0.48462435]
[1721081838466,0.14974,64100.0,64099.0,0.17260735]
[1721081839027,0.14974,64100.0,64097.0,0.01659935]
[1721081839216,0.14974,64100.0,64099.0,0.01659935]
[1721081839413,0.305746,64100.0,64099.0,0.01659935]
[1721081839645,0.14974,64100.0,64099.0,0.01659935]
[1721081839964,0.14974,64100.0,64097.0,0.01659935]
[1721081840167,0.14974,64100.0,64099.0,0.48462435]
[1721081840531,0.14974,64100.0,64099.0,0.01659935]
[1721081840704,0.15058,64100.0,64099.0,0.64063335]
[1721081840909,0.15058,64100.0,64099.0,1.25195835]
[1721081841688,0.15062,64100.0,64099.0,0.94004135]
[1721081841896,0.15062,64100.0,64099.0,0.62802435]
[1721081842102,0.15062,64100.0,64099.0,0.93994135]
[1721081842303,0.15062,64100.0,64099.0,1.25205835]
[1721081842519,0.15062,64100.0,64099.0,0.93994135]
[1721081842733,0.15062,64100.0,64099.0,0.62802435]
[1721081842943,0.15062,64100.0,64099.0,0.15999935]
[1721081843148,0.15062,64100.0,64099.0,0.1434]
[1721081843361,0.15062,64100.0,64099.0,0.15989935]
[1721081844015,0.462632,64100.0,64095.0,0.01659935]
[1721081844222,0.312031,64096.0,64091.0,0.1431]
[1721081844513,0.306627,64100.0,64095.0,0.01659935]
[1721081844718,0.306627,64100.0,64099.0,0.17260735]
[1721081844719,0.15062,64100.0,64099.0,0.17260735]
[1721081845386,0.15062,64100.0,64099.0,0.48462435]
[1721081845710,0.15062,64100.0,64099.0,0.79664135]
[1721081845910,0.15062,64100.0,64099.0,1.10865835]
[1721081846158,0.00088,64100.0,64099.0,1.10865835]
[1721081846587,0.00088,64100.0,64099.0,0.17260735]
[1721081846802,0.00088,64100.0,64099.0,0.79664135]
[1721081846964,0.00088,64100.0,64099.0,1.17405835]
[1721081847166,4e-05,64112.0,64111.0,0.48453635]
[1721081847367,4e-05,64112.0,64111.0,0.87499435]
[1721081847566,4e-05,64112.0,64111.0,1.18695235]
[1721081847772,0.311895,64125.0,64115.0,0.01659935]
[1721081848014,0.08105238,64133.0,64115.0,0.01659935]
[1721081848015,0.155967,64117.0,64115.0,0.01659935]
[1721081848215,0.311915,64120.0,64115.0,0.01659935]
[1721081848427,0.311915,64120.0,64113.0,0.01659935]
[1721081848428,0.311918,64120.0,64113.0,0.01659935]
[1721081848674,0.3094,64126.0,64119.0,0.01659935]
[1721081848910,0.00306353,64137.0,64119.0,0.01659935]
[1721081848911,0.06,64128.0,64119.0,0.01659935]
[1721081849150,0.155953,64122.0,64119.0,0.01659935]
[1721081849388,0.08105238,64133.0,64119.0,0.01659935]
[1721081849616,0.155957,64120.0,64119.0,0.01659935]
[1721081849871,0.15596,64119.0,64118.0,0.01659935]
[1721081850100,0.15596,64119.0,64111.0,0.0785]
[1721081850101,0.311902,64123.0,64115.0,0.01659935]
[1721081850388,0.311881,64127.0,64118.0,0.155962]
[1721081850583,0.155947,64125.0,64117.0,0.155964]
[1721081850757,0.155947,64125.0,64115.0,0.32853335]
[1721081850758,0.155948,64124.0,64119.0,0.01659935]
[1721081851160,0.00306353,64141.0,64127.0,0.01659935]
[1721081851372,0.155938,64128.0,64127.0,0.01659935]
[1721081851682,0.155938,64128.0,64125.0,0.01659935]
[1721081851916,0.15594,64127.0,64126.0,0.01659935]
[1721081852120,0.467821,64127.0,64126.0,0.01659935]
[1721081852610,0.155947,64124.0,64123.0,0.01659935]
[1721081852801,0.155938,64128.0,64123.0,0.01659935]
[1721081853021,0.155938,64128.0,64127.0,0.01659935]
[1721081853219,0.155938,64128.0,64125.0,0.01659935]
[1721081853431,0.155938,64128.0,64126.0,0.01659935]
[1721081853592,0.155938,64128.0,64127.0,0.01659935]
[1721081853796,0.155938,64128.0,64121.0,0.155953]
[1721081853797,0.06,64143.0,64133.0,0.01659935]
[1721081854004,0.06,64143.0,64128.0,0.311875]
[1721081854005,0.06,64148.0,64139.0,0.01659935]
[1721081854205,0.461509,64150.0,64138.0,0.01659935]
[1721081854206,0.155907,64141.0,64138.0,0.01659935]
[1721081854420,0.215902,64143.0,64139.0,0.01659935]
[1721081854942,0.155904,64142.0,64139.0,0.01659935]
[1721081855349,0.06,64143.0,64139.0,0.01659935]
[1721081855865,0.467682,64146.0,64145.0,0.01655935]
[1721081856120,0.14974,64150.0,64143.0,0.01655935]
[1721081856347,0.155892,64147.0,64145.0,0.01655935]
[1721081856576,0.155888,64149.0,64145.0,0.01655935]
[1721081856804,0.14974,64150.0,64145.0,0.01655935]
[1721081857220,0.14974,64150.0,64143.0,0.01655935]
[1721081857221,0.15589,64148.0,64143.0,0.01655935]
[1721081857622,0.15589,64148.0,64145.0,0.01655935]
[1721081857873,0.20974,64150.0,64143.0,0.01655935]
[1721081858068,0.155899,64144.0,64143.0,0.01655935]
[1721081858278,0.14974,64150.0,64145.0,0.01655935]
[1721081858479,0.14974,64150.0,64143.0,0.311799]
[1721081858480,0.14974,64150.0,64143.0,0.32835835]
[1721081858695,4e-05,64148.0,64143.0,0.01655935]
[1721081858905,0.08105238,64147.0,64140.0,0.063]
[1721081859103,0.155923,64134.0,64133.0,0.01655935]
[1721081859720,0.311823,64139.0,64138.0,0.01655935]
[1721081859920,0.467734,64139.0,64138.0,0.01655935]
[1721081861047,0.155911,64139.0,64138.0,0.01655935]
[1721081861253,0.155896,64146.0,64138.0,0.01655935]
[1721081861496,0.155893,64147.0,64145.0,0.01651935]
[1721081861893,4e-05,64148.0,64145.0,0.01651935]
[1721081861894,0.155929,64148.0,64145.0,0.01651935]
[1721081862459,4e-05,64148.0,64147.0,0.01651935]
[1721081862721,4e-05,64148.0,64147.0,0.01661935]
[1721081862926,4e-05,64148.0,64147.0,0.79597635]
[1721081863129,4e-05,64148.0,64147.0,0.48419335]
[1721081863750,4e-05,64148.0,64147.0,0.51710105]
[1721081865164,4e-05,64148.0,64147.0,1.17075935]
[1721081865382,4e-05,64148.0,64147.0,1.27075935]
[1721081866831,4e-05,64148.0,64147.0,1.30366705]
[1721081867044,4e-05,64148.0,64147.0,1.27075935]
[1721081867254,0.374135,64174.0,64164.0,0.51697805]
[1721081867255,0.4863143,64168.0,64164.0,0.51697805]
[1721081867466,0.4863143,64168.0,64164.0,0.97047905]
[1721081867662,0.31163,64179.0,64164.0,0.93757135]
[1721081867863,0.31163,64179.0,64164.0,0.97047905]
[1721081867864,0.08105238,64178.0,64164.0,0.97047905]
[1721081868276,0.155824,64175.0,64164.0,0.97047905]
[1721081868667,0.08105238,64178.0,64164.0,0.97047905]
[1721081869287,0.155822,64176.0,64164.0,0.97047905]
[1721081869529,0.311619,64181.0,64164.0,1.28218005]
[1721081869772,0.06,64183.0,64164.0,1.28218005]
[1721081870007,0.15581,64181.0,64164.0,1.28218005]
[1721081870477,0.155811,64180.0,64164.0,1.28218005]
[1721081870707,0.23686638,64179.0,64164.0,1.28218005]
[1721081870947,0.00256608,64178.0,64164.0,1.28218005]
[1721081871430,0.08105238,64179.0,64164.0,1.28218005]
[1721081871672,0.08105238,64227.0,64164.0,1.24927235]
[1721081871673,0.00211348,64178.0,64164.0,1.24927235]
[1721081871904,0.08105238,64179.0,64164.0,1.28218005]
[1721081872903,0.00841,64165.0,64164.0,1.28218005]
[1721081873158,0.00841,64165.0,64164.0,0.97047905]
[1721081873415,0.00841,64165.0,64164.0,0.65877805]
[1721081873668,0.00841,64165.0,64164.0,0.97047905]
[1721081875799,0.00841,64165.0,64164.0,0.65877805]
[1721081876038,0.00841,64165.0,64164.0,0.58337805]
[1721081876427,0.00841,64165.0,64164.0,0.89507905]
[1721081877476,0.00841,64165.0,64164.0,1.22387235]
[1721081878118,0.311599,64185.0,64164.0,1.22387235]
[1721081878350,0.155814,64179.0,64178.0,0.01651935]
[1721081878592,0.467449,64178.0,64177.0,0.01651935]
[1721081878802,0.155826,64174.0,64173.0,0.01651935]
[1721081879019,0.155831,64172.0,64171.0,0.01651935]
[1721081879253,0.467493,64172.0,64171.0,0.01651935]
[1721081879936,0.00306353,64174.0,64173.0,0.48400435]
[1721081880137,4e-05,64186.0,64173.0,0.01651935]
[1721081880346,4e-05,64186.0,64166.0,0.0001]
[1721081880347,0.315647,64181.0,64176.0,0.01651935]
[1721081880605,0.00306353,64180.0,64179.0,0.01661935]
[1721081880804,0.00306353,64180.0,64179.0,0.17233335]
[1721081881009,4e-05,64186.0,64184.0,0.01651935]
[1721081881556,4e-05,64186.0,64185.0,0.48391735]
[1721081881684,4e-05,64186.0,64185.0,0.51682505]
[1721081881896,4e-05,64186.0,64185.0,1.14002305]
[1721081882106,4e-05,64186.0,64185.0,1.10711535]
[1721081882310,4e-05,64186.0,64185.0,1.20711535]
[1721081882561,0.00837,64195.0,64191.0,0.84544435]
[1721081882707,0.14974,64200.0,64199.0,0.90814635]
[1721081882885,0.14974,64200.0,64199.0,1.70190835]
[1721081882886,0.08490956,64200.0,64199.0,1.70190835]
[1721081883094,0.00271721,64200.0,64199.0,1.86781605]
[1721081883297,1e-08,64200.0,64199.0,1.79481605]
[1721081883955,0.00837,64213.0,64212.0,1.15665735]
[1721081884201,0.00837,64213.0,64212.0,1.35475735]
[1721081884488,0.00837,64213.0,64212.0,0.06461935]
[1721081884737,0.155736,64212.0,64211.0,0.01651935]
[1721081884973,0.00837,64213.0,64206.0,0.01651935]
[1721081884974,0.155737,64211.0,64206.0,0.01651935]
[1721081885236,0.00306353,64210.0,64209.0,0.01651935]
[1721081885473,0.00837,64213.0,64209.0,0.01651935]
[1721081885474,0.15879753,64212.0,64209.0,0.01651935]
[1721081885752,0.15879753,64212.0,64205.0,0.01651935]
[1721081885753,0.08105238,64210.0,64205.0,0.01651935]
[1721081885948,0.155772,64196.0,64195.0,0.4673]
[1721081886156,0.155768,64198.0,64197.0,0.01651935]
[1721081886584,0.155768,64198.0,64188.0,0.155891]
[1721081886585,0.467312,64197.0,64196.0,0.01651935]
[1721081886812,0.311541,64197.0,64189.0,0.01651935]
[1721081887036,0.00306353,64196.0,64189.0,0.01651935]
[1721081887249,0.00306353,64196.0,64195.0,0.01651935]
[1721081887250,0.47038053,64196.0,64195.0,0.01651935]
[1721081887458,0.467342,64193.0,64189.0,0.01651935]
[1721081887669,0.155781,64193.0,64192.0,0.01651935]
[1721081887883,0.00306353,64196.0,64188.0,0.0001]
[1721081888095,0.00306353,64196.0,64173.0,0.03127]
[1721081888096,0.467419,64182.0,64179.0,0.0001]
[1721081888342,0.155811,64180.0,64179.0,0.0001]
[1721081888549,0.467434,64180.0,64179.0,0.0001]
[1721081888767,0.467434,64180.0,64179.0,0.01661935]
[1721081888999,0.155811,64180.0,64179.0,0.01661935]
[1721081889223,1.09374353,64180.0,64179.0,0.0001]
[1721081889436,1.33418,64180.0,64179.0,0.0001]
[1721081890296,0.709034,64180.0,64179.0,0.0001]
[1721081890505,0.920657,64180.0,64179.0,0.0001]
[1721081890740,0.839057,64180.0,64179.0,0.0001]
[1721081891393,1.09068,64180.0,64179.0,0.0001]
[1721081891600,0.839057,64180.0,64179.0,0.0001]
[1721081891820,0.839097,64180.0,64179.0,0.0001]
[1721081892027,0.155851,64180.0,64179.0,0.0001]
[1721081892434,0.467399,64180.0,64179.0,0.01661935]
[1721081892634,0.779022,64180.0,64179.0,0.01661935]
[1721081892841,1.090645,64180.0,64179.0,0.0001]
[1721081894541,1.185645,64180.0,64179.0,0.0001]
[1721081894775,1.185645,64180.0,64160.0,1.2631]
[1721081894776,0.779287,64161.0,64160.0,1.2631]
[1721081894981,0.467595,64158.0,64157.0,0.01651935]
[1721081895213,0.155865,64158.0,64157.0,0.01651935]
[1721081895441,0.00306353,64160.0,64159.0,0.01651935]
[1721081895651,0.311657,64174.0,64162.0,0.01651935]
[1721081895652,0.155846,64166.0,64162.0,0.01651935]
[1721081895895,0.00306353,64168.0,64167.0,0.01651935]
[1721081896108,0.00306353,64168.0,64156.0,0.08105238]
[1721081896109,0.00306353,64175.0,64174.0,0.01651935]
[1721081896321,0.00306353,64175.0,64162.0,0.311708]
[1721081896322,0.00306353,64175.0,64171.0,0.01651935]
[1721081896541,0.311642,64176.0,64175.0,0.01651935]
[1721081896755,0.311628,64179.0,64174.0,0.01651935]
[1721081896958,0.00306353,64181.0,64164.0,0.623395]
[1721081896959,0.467463,64176.0,64175.0,0.01651935]
[1721081897160,0.467363,64176.0,64175.0,0.01651935]
[1721081897367,0.155823,64175.0,64174.0,0.01651935]
[1721081897566,0.155723,64175.0,64174.0,0.01651935]
[1721081897771,0.46737,64175.0,64174.0,0.01651935]
[1721081900279,0.52737,64175.0,64174.0,0.01651935]
[1721081900508,0.839017,64175.0,64174.0,0.01651935]
[1721081900930,0.06,64174.0,64168.0,0.01651935]
[1721081901182,0.06,64174.0,64160.0,0.4673]
[1721081901183,0.467521,64168.0,64167.0,0.01651935]
[1721081901386,0.467521,64168.0,64156.0,0.155868]
[1721081901387,0.779447,64148.0,64147.0,0.000913]
[1721081901603,1.091226,64148.0,64147.0,0.000913]
[1721081901812,0.779347,64148.0,64147.0,0.01743235]
[1721081902649,0.06,64155.0,64147.0,0.000913]
[1721081902884,0.155885,64150.0,64147.0,0.01743235]
[1721081903113,0.00306353,64154.0,64150.0,0.0643]
[1721081903331,0.31173,64158.0,64153.0,0.01651935]
[1721081903552,0.155871,64156.0,64155.0,0.01651935]
[1721081903756,0.155865,64158.0,64157.0,0.01651935]
[1721081904137,0.467595,64158.0,64157.0,0.01651935]
[1721081904512,0.467595,64158.0,64157.0,0.01743235]
[1721081905307,1.091055,64158.0,64157.0,0.01743235]
[1721081905430,1.091055,64158.0,64157.0,0.000913]
[1721081905634,1.402785,64158.0,64157.0,0.000913]
[1721081905860,1.214055,64158.0,64157.0,0.000913]
[1721081906106,1.273955,64158.0,64157.0,0.000913]
[1721081906455,0.779225,64158.0,64157.0,0.000913]
[1721081906774,1.462685,64158.0,64157.0,0.000913]
[1721081906945,1.223855,64158.0,64157.0,0.000913]
[1721081907418,1.223755,64158.0,64157.0,0.000913]
[1721081907621,1.535385,64158.0,64157.0,0.000913]
[1721081907827,1.886485,64158.0,64157.0,0.000913]
[1721081908045,2.20793024,64158.0,64157.0,0.000913]
[1721081908254,2.52718956,64158.0,64157.0,0.000913]
[1721081908447,2.56741577,64158.0,64157.0,0.000913]
[1721081908884,2.20568577,64158.0,64157.0,0.000913]
[1721081909086,2.22773767,64158.0,64157.0,0.000913]
[1721081909381,2.56741559,64158.0,64157.0,0.000913]
[1721081909606,2.63710318,64158.0,64157.0,0.000913]
[1721081909734,2.63700318,64158.0,64157.0,0.000913]
[1721081910150,2.63696228,64158.0,64157.0,0.000913]
[1721081910374,2.51731683,64158.0,64157.0,0.000913]
[1721081910579,2.49291213,64158.0,64157.0,0.000913]
[1721081910781,2.18118213,64158.0,64157.0,0.000913]
[1721081911171,2.07480148,64158.0,64157.0,0.000913]
[1721081911371,1.165755,64158.0,64157.0,0.000913]
[1721081911769,1.225755,64158.0,64157.0,0.000913]
[1721081912592,0.06,64164.0,64157.0,0.000913]
[1721081912803,0.527595,64158.0,64157.0,0.000913]
[1721081913007,1.150955,64158.0,64157.0,0.000913]
[1721081913201,1.150855,64158.0,64157.0,0.000913]
[1721081914269,1.26056954,64158.0,64157.0,0.000913]
[1721081914480,1.64519954,64158.0,64157.0,0.000913]
[1721081914684,1.26056954,64158.0,64157.0,0.000913]
[1721081914919,1.250855,64158.0,64157.0,0.000913]
[1721081915131,1.26056969,64158.0,64157.0,0.000913]
[1721081915327,1.26056969,64158.0,64157.0,0.001013]
[1721081915539,0.8890394,64158.0,64157.0,0.001013]
[1721081915762,0.567595,64158.0,64157.0,0.001013]
[1721081915964,0.00188492,64168.0,64158.0,0.155864]
[1721081915965,0.311684,64168.0,64158.0,0.155864]
[1721081916178,0.08105238,64174.0,64157.0,0.061813]
[1721081916380,0.155862,64160.0,64157.0,0.001013]
[1721081916836,0.08105238,64167.0,64157.0,0.001013]
[1721081916837,0.08105238,64159.0,64157.0,0.001013]
[1721081917142,1.091055,64158.0,64157.0,0.001013]
[1721081917493,0.879325,64158.0,64157.0,0.001013]
[1721081917927,0.0598,64173.0,64157.0,0.001013]
[1721081918119,0.06747,64175.0,64165.0,0.0608]
[1721081918120,0.00087,64175.0,64165.0,0.0608]
[1721081918313,0.155839,64169.0,64165.0,0.0608]
[1721081918519,0.311667,64171.0,64165.0,0.0608]
[1721081918520,0.155841,64168.0,64165.0,0.0608]
[1721081918669,0.00087,64175.0,64164.0,0.01651935]
[1721081918876,0.00087,64175.0,64157.0,0.061813]
[1721081918877,0.00087,64175.0,64166.0,0.01651935]
[1721081919074,0.00087,64175.0,64170.0,0.17235235]
[1721081919313,0.00087,64175.0,64164.0,0.3117]
[1721081919314,0.00087,64175.0,64174.0,0.01651935]
[1721081919527,0.00087,64175.0,64174.0,0.23314535]
[1721081919734,0.00087,64175.0,64174.0,0.54479735]
[1721081920160,0.00087,64175.0,64174.0,0.07731935]
[1721081920369,0.00087,64175.0,64174.0,0.01651935]
[1721081920971,0.00087,64175.0,64170.0,0.01651935]
[1721081921199,0.00087,64175.0,64168.0,0.07731935]
[1721081921407,0.155843,64167.0,64166.0,0.01651935]
[1721081921607,0.00087,64175.0,64168.0,0.01651935]
[1721081921825,0.00087,64175.0,64162.0,0.01651935]
[1721081922024,0.31167,64171.0,64162.0,0.01651935]
[1721081922227,0.08105238,64173.0,64157.0,0.001013]
[1721081922228,0.155865,64158.0,64157.0,0.001013]
[1721081922476,0.467595,64158.0,64157.0,0.001013]
[1721081922639,0.779325,64158.0,64157.0,0.001013]
[1721081924612,0.779365,64158.0,64157.0,0.001013]
[1721081924935,4e-05,64158.0,64157.0,0.001013]
[1721081925132,0.31177,64158.0,64157.0,0.001013]
[1721081925344,0.155905,64158.0,64157.0,0.001013]
[1721081925755,0.467635,64158.0,64157.0,0.001013]
[1721081925971,4e-05,64158.0,64157.0,0.001013]
[1721081926369,0.155905,64158.0,64157.0,0.001013]
[1721081926572,0.467635,64158.0,64157.0,0.001013]
[1721081927401,0.155905,64158.0,64157.0,0.001013]
[1721081927773,4e-05,64158.0,64157.0,0.001013]
[1721081928197,4e-05,64158.0,64157.0,0.01753235]
[1721081928398,4e-05,64158.0,64157.0,0.17339935]
[1721081929283,4e-05,64158.0,64157.0,0.48513435]
[1721081929514,4e-05,64158.0,64157.0,0.79686935]
[1721081929720,4e-05,64158.0,64157.0,0.48513435]
[1721081930651,4e-05,64158.0,64157.0,0.79686935]
[1721081931057,4e-05,64158.0,64157.0,0.87456935]
[1721081931258,4e-05,64158.0,64157.0,1.18630435]
[1721081931899,4e-05,64158.0,64157.0,1.21941205]
[1721081932109,4e-05,64158.0,64157.0,1.18630435]
[1721081932730,4e-05,64158.0,64157.0,1.39890435]
[1721081935159,0.00091,64175.0,64174.0,0.79564935]
[1721081935374,0.00091,64175.0,64174.0,0.87434935]
[1721081935576,0.00091,64175.0,64174.0,1.44440905]
[1721081936006,0.00091,64175.0,64174.0,1.49440905]
[1721081936241,0.05491409,64213.0,64203.0,0.01651935]
[1721081936438,0.15574,64210.0,64205.0,0.01651935]
[1721081936639,0.155736,64211.0,64209.0,0.01651935]
[1721081936858,0.00837,64213.0,64210.0,0.01651935]
[1721081937066,0.155736,64211.0,64210.0,0.01651935]
[1721081937273,0.164102,64213.0,64210.0,0.01651935]
[1721081937515,0.00837,64213.0,64210.0,0.01651935]
[1721081937684,0.00837,64213.0,64212.0,0.01651935]
[1721081938096,0.00837,64213.0,64212.0,0.04962705]
[1721081938307,0.00837,64213.0,64212.0,0.01651935]
[1721081938935,0.00837,64213.0,64208.0,0.0001]
[1721081938936,0.467209,64211.0,64210.0,0.01651935]
[1721081939142,0.467209,64211.0,64204.0,0.01651935]
[1721081939143,0.155751,64205.0,64204.0,0.01651935]
[1721081939344,0.311478,64210.0,64208.0,0.01651935]
[1721081939554,0.155747,64207.0,64206.0,0.01651935]
[1721081939756,0.155751,64205.0,64204.0,0.01651935]
[1721081939966,0.00837,64213.0,64202.0,0.01651935]
[1721081940164,0.00837,64213.0,64208.0,0.01651935]
[1721081940165,0.08105238,64211.0,64208.0,0.01651935]
[1721081940388,0.08105238,64211.0,64196.0,0.0001]
[1721081940389,0.08105238,64210.0,64205.0,0.01651935]
[1721081940628,0.00837,64213.0,64209.0,0.0001]
[1721081940829,0.164102,64213.0,64212.0,0.01651935]
[1721081941031,0.00837,64213.0,64212.0,0.01651935]
[1721081941266,0.00837,64213.0,64212.0,0.48372135]
[1721081941443,0.00837,64213.0,64212.0,0.51682905]
[1721081941652,0.00837,64213.0,64212.0,0.79518935]
[1721081941857,0.00837,64213.0,64212.0,1.19976505]
[1721081942069,0.00088,64217.0,64216.0,0.82862]
[1721081942285,0.00088,64217.0,64216.0,1.79270535]
[1721081942490,0.00835,64223.0,64222.0,1.28358535]
[1721081942690,0.00837,64242.0,64229.0,1.03808905]
[1721081942902,0.00837,64242.0,64229.0,1.77762135]
[1721081943112,0.00837,64242.0,64229.0,1.74635135]
[1721081943326,0.00837,64242.0,64229.0,1.83945905]
[1721081943534,0.00837,64242.0,64229.0,1.80638788]
[1721081943740,0.00837,64242.0,64229.0,1.77945905]